[Event "Titled Tuesday Blitz July 4 Early 2023"]
[White "Gaal, Zsoka"]
[Black "Timerkhanov, Alexander"]
[WhiteFideId "777765"]
[BlackFideId "24177938"]
[WhiteElo "2376"]
[BlackElo "2672"]
[Result "0-1"]
[Round "2"]
[TimeControl "180+2"]
[Date "2023.07.04"]
[WhiteClock "0:00:39"]
[BlackClock "0:02:19"]
[Board "118"]

1. Nf3 {[%clk 0:03:00]}  d5 {[%clk 0:02:59]} 2. b3 {[%clk 0:03:01]}  Bg4 {[%clk 0:02:58]} 3. Bb2 {[%clk 0:03:00]}  Nd7 {[%clk 0:02:58]} 4. g3 {[%clk 0:03:00]}  Bxf3 {[%clk 0:02:58]} 5. exf3 {[%clk 0:03:01]}  e6 {[%clk 0:02:58]} 6. Bg2 {[%clk 0:03:01]}  Ngf6 {[%clk 0:02:59]} 7. O-O {[%clk 0:03:01]}  Bd6 {[%clk 0:02:59]} 8. f4 {[%clk 0:03:02]}  O-O {[%clk 0:02:59]} 9. d3 {[%clk 0:03:01]}  c5 {[%clk 0:02:59]} 10. Nd2 {[%clk 0:03:00]}  Rc8 {[%clk 0:02:58]} 11. Re1 {[%clk 0:02:59]}  h6 {[%clk 0:02:58]} 12. Nf3 {[%clk 0:02:54]}  b5 {[%clk 0:02:55]} 13. Nh4 {[%clk 0:02:41]}  Qc7 {[%clk 0:02:52]} 14. f5 {[%clk 0:02:41]}  e5 {[%clk 0:02:50]} 15. Nf3 {[%clk 0:02:14]}  Rfe8 {[%clk 0:02:48]} 16. Qd2 {[%clk 0:01:53]}  c4 {[%clk 0:02:45]} 17. bxc4 {[%clk 0:01:25]}  bxc4 {[%clk 0:02:43]} 18. dxc4 {[%clk 0:01:15]}  dxc4 {[%clk 0:02:42]} 19. Rad1 {[%clk 0:01:10]}  Bc5 {[%clk 0:02:40]} 20. Bc3 {[%clk 0:00:58]}  e4 {[%clk 0:02:27]} 21. Re2 {[%clk 0:00:58]}  exf3 {[%clk 0:02:26]} 22. Bxf3 {[%clk 0:00:55]}  Rxe2 {[%clk 0:02:24]} 23. Qxe2 {[%clk 0:00:56]}  Re8 {[%clk 0:02:21]} 24. Qd2 {[%clk 0:00:50]}  Ne5 {[%clk 0:02:20]} 25. Bg2 {[%clk 0:00:39]}  Neg4 {[%clk 0:02:19]} 0-1


[Site "https://www.chess.com"]

[Event "Titled Tuesday Blitz July 4 Early 2023"]
[White "Zia, Tahsin Tajwar"]
[Black "Burmakin, Vladimir"]
[WhiteFideId "10211888"]
[BlackFideId "4105109"]
[WhiteElo "2393"]
[BlackElo "2636"]
[Result "1-0"]
[Round "2"]
[TimeControl "180+2"]
[Date "2023.07.04"]
[WhiteClock "0:00:08"]
[BlackClock "0:00:04"]
[Board "119"]

1. Nf3 {[%clk 0:02:59]}  d5 {[%clk 0:02:59]} 2. c4 {[%clk 0:02:58]}  c6 {[%clk 0:02:59]} 3. d4 {[%clk 0:02:57]}  Nf6 {[%clk 0:02:59]} 4. Nc3 {[%clk 0:02:56]}  e6 {[%clk 0:02:59]} 5. Qd3 {[%clk 0:02:55]}  Nbd7 {[%clk 0:02:58]} 6. g3 {[%clk 0:02:55]}  Be7 {[%clk 0:02:48]} 7. Bg2 {[%clk 0:02:55]}  O-O {[%clk 0:02:47]} 8. O-O {[%clk 0:02:56]}  a6 {[%clk 0:02:48]} 9. e4 {[%clk 0:02:54]}  dxe4 {[%clk 0:02:37]} 10. Nxe4 {[%clk 0:02:55]}  Nxe4 {[%clk 0:02:32]} 11. Qxe4 {[%clk 0:02:56]}  Nf6 {[%clk 0:02:32]} 12. Qc2 {[%clk 0:02:52]}  c5 {[%clk 0:02:31]} 13. Rd1 {[%clk 0:02:44]}  cxd4 {[%clk 0:02:29]} 14. Nxd4 {[%clk 0:02:44]}  Qc7 {[%clk 0:02:29]} 15. b3 {[%clk 0:02:40]}  Bd7 {[%clk 0:02:28]} 16. Bb2 {[%clk 0:02:39]}  Rfd8 {[%clk 0:02:23]} 17. Rac1 {[%clk 0:02:23]}  Rac8 {[%clk 0:02:22]} 18. h3 {[%clk 0:02:21]}  Be8 {[%clk 0:02:15]} 19. Qe2 {[%clk 0:02:14]}  h6 {[%clk 0:02:11]} 20. Nf3 {[%clk 0:02:04]}  Rxd1+ {[%clk 0:02:08]} 21. Rxd1 {[%clk 0:02:04]}  b5 {[%clk 0:02:08]} 22. Ne5 {[%clk 0:01:53]}  bxc4 {[%clk 0:02:05]} 23. bxc4 {[%clk 0:01:53]}  Qa5 {[%clk 0:01:58]} 24. Bd4 {[%clk 0:01:38]}  Qc7 {[%clk 0:01:39]} 25. Rb1 {[%clk 0:01:34]}  Bc5 {[%clk 0:01:38]} 26. Rb7 {[%clk 0:01:32]}  Qd6 {[%clk 0:01:36]} 27. Bxc5 {[%clk 0:01:25]}  Rxc5 {[%clk 0:01:36]} 28. f4 {[%clk 0:01:11]}  Ra5 {[%clk 0:01:16]} 29. Kh2 {[%clk 0:01:03]}  Ra3 {[%clk 0:01:15]} 30. Rb3 {[%clk 0:00:43]}  a5 {[%clk 0:01:02]} 31. Qc2 {[%clk 0:00:23]}  Rxb3 {[%clk 0:00:56]} 32. axb3 {[%clk 0:00:22]}  Qc5 {[%clk 0:00:48]} 33. Nd3 {[%clk 0:00:21]}  Qd4 {[%clk 0:00:47]} 34. c5 {[%clk 0:00:20]}  Bb5 {[%clk 0:00:46]} 35. Ne5 {[%clk 0:00:17]}  Ne8 {[%clk 0:00:45]} 36. c6 {[%clk 0:00:15]}  Nc7 {[%clk 0:00:45]} 37. Qa2 {[%clk 0:00:11]}  Qb4 {[%clk 0:00:40]} 38. Qc2 {[%clk 0:00:07]}  Qd4 {[%clk 0:00:39]} 39. Qa2 {[%clk 0:00:07]}  Qc3 {[%clk 0:00:37]} 40. Qf2 {[%clk 0:00:07]}  f6 {[%clk 0:00:35]} 41. Nc4 {[%clk 0:00:03]}  Qxb3 {[%clk 0:00:31]} 42. Qb6 {[%clk 0:00:03]}  Qxc4 {[%clk 0:00:28]} 43. Qxc7 {[%clk 0:00:04]}  Kh7 {[%clk 0:00:24]} 44. Qd6 {[%clk 0:00:04]}  Qc2 {[%clk 0:00:22]} 45. c7 {[%clk 0:00:03]}  Bf1 {[%clk 0:00:19]} 46. Qc6 {[%clk 0:00:04]}  Qxc6 {[%clk 0:00:19]} 47. Bxc6 {[%clk 0:00:04]}  Ba6 {[%clk 0:00:19]} 48. Bd7 {[%clk 0:00:04]}  e5 {[%clk 0:00:17]} 49. fxe5 {[%clk 0:00:05]}  fxe5 {[%clk 0:00:17]} 50. c8=Q {[%clk 0:00:06]}  Bxc8 {[%clk 0:00:17]} 51. Bxc8 {[%clk 0:00:07]}  a4 {[%clk 0:00:17]} 52. Be6 {[%clk 0:00:07]}  Kg6 {[%clk 0:00:16]} 53. Kg2 {[%clk 0:00:08]}  Kf6 {[%clk 0:00:17]} 54. Bc4 {[%clk 0:00:08]}  Kf5 {[%clk 0:00:16]} 55. Kf3 {[%clk 0:00:08]}  h5 {[%clk 0:00:15]} 56. Bd3+ {[%clk 0:00:09]}  Ke6 {[%clk 0:00:14]} 57. Ke4 {[%clk 0:00:09]}  a3 {[%clk 0:00:13]} 58. Bc4+ {[%clk 0:00:10]}  Kf6 {[%clk 0:00:13]} 59. Ba2 {[%clk 0:00:06]}  g6 {[%clk 0:00:13]} 60. Bb3 {[%clk 0:00:06]}  g5 {[%clk 0:00:10]} 61. Ba2 {[%clk 0:00:07]}  h4 {[%clk 0:00:08]} 62. g4 {[%clk 0:00:07]}  Kg6 {[%clk 0:00:04]} 63. Kxe5 {[%clk 0:00:08]} 1-0


[Site "https://www.chess.com"]

[Event "Titled Tuesday Blitz July 4 Early 2023"]
[White "Fisher_TheGalactic"]
[Black "Legenia, Artem"]
[BlackFideId "14136945"]
[WhiteElo "2617"]
[BlackElo "2297"]
[Result "1/2-1/2"]
[Round "2"]
[TimeControl "180+2"]
[Date "2023.07.04"]
[WhiteClock "0:00:53"]
[BlackClock "0:00:08"]
[Board "121"]

1. Nf3 {[%clk 0:03:00]}  e6 {[%clk 0:02:56]} 2. g3 {[%clk 0:03:01]}  d5 {[%clk 0:02:51]} 3. Bg2 {[%clk 0:03:02]}  Nf6 {[%clk 0:02:52]} 4. O-O {[%clk 0:03:02]}  c5 {[%clk 0:02:52]} 5. d3 {[%clk 0:03:03]}  Nc6 {[%clk 0:02:52]} 6. Nbd2 {[%clk 0:03:04]}  h6 {[%clk 0:02:52]} 7. e4 {[%clk 0:03:04]}  Be7 {[%clk 0:02:53]} 8. exd5 {[%clk 0:03:04]}  Nxd5 {[%clk 0:02:53]} 9. Nc4 {[%clk 0:03:04]}  O-O {[%clk 0:02:53]} 10. Nfe5 {[%clk 0:03:03]}  Qc7 {[%clk 0:02:49]} 11. Nxc6 {[%clk 0:03:00]}  Qxc6 {[%clk 0:02:45]} 12. Re1 {[%clk 0:02:58]}  Qc7 {[%clk 0:02:44]} 13. Bxd5 {[%clk 0:02:56]}  exd5 {[%clk 0:02:43]} 14. Bf4 {[%clk 0:02:57]}  Qd8 {[%clk 0:02:41]} 15. Rxe7 {[%clk 0:02:47]}  dxc4 {[%clk 0:02:23]} 16. Re3 {[%clk 0:02:45]}  cxd3 {[%clk 0:02:23]} 17. Rxd3 {[%clk 0:02:46]}  Qb6 {[%clk 0:02:19]} 18. b3 {[%clk 0:02:39]}  Be6 {[%clk 0:02:18]} 19. Rd6 {[%clk 0:02:36]}  Qa5 {[%clk 0:02:11]} 20. Qf3 {[%clk 0:02:27]}  b6 {[%clk 0:02:01]} 21. Bd2 {[%clk 0:02:20]}  Qa3 {[%clk 0:01:54]} 22. Bc1 {[%clk 0:02:16]}  Qb4 {[%clk 0:01:52]} 23. Bb2 {[%clk 0:02:06]}  Rad8 {[%clk 0:01:47]} 24. a3 {[%clk 0:01:59]}  Qg4 {[%clk 0:01:43]} 25. Qd3 {[%clk 0:01:49]}  Rxd6 {[%clk 0:01:39]} 26. Qxd6 {[%clk 0:01:50]}  Qf3 {[%clk 0:01:37]} 27. Qe5 {[%clk 0:01:45]}  Qg4 {[%clk 0:01:26]} 28. a4 {[%clk 0:01:42]}  Rd8 {[%clk 0:01:22]} 29. Re1 {[%clk 0:01:33]}  Rd1 {[%clk 0:01:15]} 30. Rxd1 {[%clk 0:00:53]}  Qxd1+ {[%clk 0:01:13]} 31. Kg2 {[%clk 0:00:53]}  Bd5+ {[%clk 0:00:35]} 32. Kh3 {[%clk 0:00:53]}  Be6+ {[%clk 0:00:20]} 33. Kg2 {[%clk 0:00:53]}  Bd5+ {[%clk 0:00:19]} 34. Kh3 {[%clk 0:00:53]}  Be6+ {[%clk 0:00:08]} 35. Kg2 {[%clk 0:00:53]} 1/2-1/2


[Site "https://www.chess.com"]

[Event "Titled Tuesday Blitz July 4 Early 2023"]
[White "Kim, Sergey"]
[Black "Andreassen, Lars"]
[WhiteFideId "13700570"]
[BlackFideId "1504878"]
[WhiteElo "2570"]
[BlackElo "2228"]
[Result "1-0"]
[Round "2"]
[TimeControl "180+2"]
[Date "2023.07.04"]
[WhiteClock "0:02:44"]
[BlackClock "0:02:39"]
[Board "123"]

1. d4 {[%clk 0:03:00]}  d5 {[%clk 0:02:55]} 2. c4 {[%clk 0:03:01]}  e6 {[%clk 0:02:54]} 3. Nc3 {[%clk 0:03:01]}  c5 {[%clk 0:02:55]} 4. e3 {[%clk 0:03:01]}  Nf6 {[%clk 0:02:54]} 5. Nf3 {[%clk 0:03:01]}  Nc6 {[%clk 0:02:55]} 6. a3 {[%clk 0:03:01]}  a6 {[%clk 0:02:55]} 7. Bd3 {[%clk 0:03:01]}  dxc4 {[%clk 0:02:54]} 8. Bxc4 {[%clk 0:03:02]}  b5 {[%clk 0:02:55]} 9. Ba2 {[%clk 0:03:02]}  Bb7 {[%clk 0:02:56]} 10. O-O {[%clk 0:03:01]}  Qb6 {[%clk 0:02:54]} 11. d5 {[%clk 0:02:46]}  exd5 {[%clk 0:02:49]} 12. Nxd5 {[%clk 0:02:46]}  Nxd5 {[%clk 0:02:47]} 13. Qxd5 {[%clk 0:02:46]}  Rd8 {[%clk 0:02:39]} 14. Qxf7# {[%clk 0:02:44]} 1-0


[Site "https://www.chess.com"]

[Event "Titled Tuesday Blitz July 4 Early 2023"]
[White "SicilianPanzer"]
[Black "Roebers, Eline"]
[BlackFideId "1058401"]
[WhiteElo "2253"]
[BlackElo "2561"]
[Result "0-1"]
[Round "2"]
[TimeControl "180+2"]
[Date "2023.07.04"]
[WhiteClock "0:00:00"]
[BlackClock "0:00:46"]
[Board "124"]

1. e4 {[%clk 0:03:00]}  c5 {[%clk 0:02:59]} 2. Nf3 {[%clk 0:03:00]}  e6 {[%clk 0:02:59]} 3. d4 {[%clk 0:02:59]}  cxd4 {[%clk 0:03:00]} 4. Nxd4 {[%clk 0:02:59]}  Nf6 {[%clk 0:03:01]} 5. Nc3 {[%clk 0:02:59]}  Nc6 {[%clk 0:03:01]} 6. Be2 {[%clk 0:02:57]}  d6 {[%clk 0:02:59]} 7. O-O {[%clk 0:02:54]}  Be7 {[%clk 0:02:59]} 8. Be3 {[%clk 0:02:53]}  O-O {[%clk 0:02:59]} 9. f4 {[%clk 0:02:51]}  a6 {[%clk 0:02:59]} 10. a4 {[%clk 0:02:49]}  Qc7 {[%clk 0:02:58]} 11. Bf3 {[%clk 0:02:39]}  Na5 {[%clk 0:02:57]} 12. Qe2 {[%clk 0:02:35]}  Nc4 {[%clk 0:02:56]} 13. Bc1 {[%clk 0:02:29]}  Rb8 {[%clk 0:02:56]} 14. b3 {[%clk 0:02:09]}  Na5 {[%clk 0:02:50]} 15. Bb2 {[%clk 0:01:49]}  Bd7 {[%clk 0:02:02]} 16. Rad1 {[%clk 0:01:43]}  Rfc8 {[%clk 0:01:52]} 17. e5 {[%clk 0:00:59]}  Ne8 {[%clk 0:01:47]} 18. exd6 {[%clk 0:00:44]}  Bxd6 {[%clk 0:01:42]} 19. g3 {[%clk 0:00:33]}  Bb4 {[%clk 0:01:22]} 20. Ne4 {[%clk 0:00:31]}  b5 {[%clk 0:01:20]} 21. c3 {[%clk 0:00:20]}  Bf8 {[%clk 0:01:16]} 22. b4 {[%clk 0:00:16]}  Nc4 {[%clk 0:01:16]} 23. a5 {[%clk 0:00:15]}  e5 {[%clk 0:01:09]} 24. fxe5 {[%clk 0:00:14]}  Nxe5 {[%clk 0:01:10]} 25. Nb3 {[%clk 0:00:11]}  Bh3 {[%clk 0:01:07]} 26. Rf2 {[%clk 0:00:09]}  Rd8 {[%clk 0:01:05]} 27. Nec5 {[%clk 0:00:09]}  Rxd1+ {[%clk 0:01:02]} 28. Qxd1 {[%clk 0:00:10]}  Rd8 {[%clk 0:01:02]} 29. Qe1 {[%clk 0:00:06]}  Rd6 {[%clk 0:00:47]} 30. Bg2 {[%clk 0:00:06]}  Bxg2 {[%clk 0:00:46]} 31. Rxg2 {[%clk 0:00:00]}  Nf3+ {[%clk 0:00:46]} 0-1


[Site "https://www.chess.com"]

[Event "Titled Tuesday Blitz July 4 Early 2023"]
[White "Bilan, Danila"]
[Black "Tahbaz, Arash"]
[WhiteFideId "24161918"]
[BlackFideId "12528846"]
[WhiteElo "2536"]
[BlackElo "3030"]
[Result "0-1"]
[Round "2"]
[TimeControl "180+2"]
[Date "2023.07.04"]
[WhiteClock "0:00:00"]
[BlackClock "0:00:54"]
[Board "127"]

1. d4 {[%clk 0:02:59]}  Nf6 {[%clk 0:02:57]} 2. Nf3 {[%clk 0:02:59]}  g6 {[%clk 0:02:58]} 3. Bg5 {[%clk 0:02:59]}  Bg7 {[%clk 0:02:58]} 4. c3 {[%clk 0:03:00]}  O-O {[%clk 0:02:59]} 5. Nbd2 {[%clk 0:03:01]}  d6 {[%clk 0:02:59]} 6. e4 {[%clk 0:03:01]}  Nbd7 {[%clk 0:02:59]} 7. Bc4 {[%clk 0:03:00]}  h6 {[%clk 0:02:58]} 8. Bh4 {[%clk 0:02:59]}  e5 {[%clk 0:02:56]} 9. dxe5 {[%clk 0:02:54]}  dxe5 {[%clk 0:02:57]} 10. O-O {[%clk 0:02:55]}  Qe7 {[%clk 0:02:49]} 11. Qc2 {[%clk 0:02:55]}  c6 {[%clk 0:02:36]} 12. a4 {[%clk 0:02:51]}  b6 {[%clk 0:02:33]} 13. Rfe1 {[%clk 0:02:45]}  Bb7 {[%clk 0:02:31]} 14. Nf1 {[%clk 0:02:43]}  Nc5 {[%clk 0:02:29]} 15. b4 {[%clk 0:02:26]}  Ncd7 {[%clk 0:02:29]} 16. Ne3 {[%clk 0:02:21]}  a6 {[%clk 0:02:13]} 17. b5 {[%clk 0:01:50]}  axb5 {[%clk 0:02:08]} 18. axb5 {[%clk 0:01:51]}  cxb5 {[%clk 0:01:54]} 19. Bxb5 {[%clk 0:01:37]}  Qc5 {[%clk 0:01:31]} 20. Bd3 {[%clk 0:00:56]}  Rxa1 {[%clk 0:01:24]} 21. Rxa1 {[%clk 0:00:56]}  Rc8 {[%clk 0:01:25]} 22. c4 {[%clk 0:00:26]}  Nh5 {[%clk 0:01:08]} 23. Nd5 {[%clk 0:00:15]}  Bxd5 {[%clk 0:01:03]} 24. exd5 {[%clk 0:00:16]}  e4 {[%clk 0:01:03]} 25. Bxe4 {[%clk 0:00:03]}  Bxa1 {[%clk 0:01:02]} 26. Bxg6 {[%clk 0:00:04]}  fxg6 {[%clk 0:00:56]} 27. Qxg6+ {[%clk 0:00:04]}  Ng7 {[%clk 0:00:57]} 28. g4 {[%clk 0:00:00]}  Qxc4 {[%clk 0:00:54]} 0-1


[Site "https://www.chess.com"]

[Event "Titled Tuesday Blitz July 4 Early 2023"]
[White "Bharath Subramaniyam H"]
[Black "Mazurkiewicz, Michal"]
[WhiteFideId "46634827"]
[BlackFideId "1124943"]
[WhiteElo "2829"]
[BlackElo "2417"]
[Result "1-0"]
[Round "2"]
[TimeControl "180+2"]
[Date "2023.07.04"]
[WhiteClock "0:00:36"]
[BlackClock "0:00:00"]
[Board "132"]

1. b3 {[%clk 0:02:55]}  Nf6 {[%clk 0:02:59]} 2. Bb2 {[%clk 0:02:55]}  g6 {[%clk 0:03:00]} 3. Nf3 {[%clk 0:02:56]}  Bg7 {[%clk 0:03:00]} 4. g3 {[%clk 0:02:57]}  O-O {[%clk 0:03:01]} 5. Bg2 {[%clk 0:02:57]}  d6 {[%clk 0:03:02]} 6. d4 {[%clk 0:02:57]}  Nbd7 {[%clk 0:03:01]} 7. O-O {[%clk 0:02:56]}  Re8 {[%clk 0:03:02]} 8. c4 {[%clk 0:02:53]}  c6 {[%clk 0:03:02]} 9. Nc3 {[%clk 0:02:51]}  e5 {[%clk 0:03:02]} 10. e3 {[%clk 0:02:43]}  Qe7 {[%clk 0:03:01]} 11. Ba3 {[%clk 0:02:39]}  c5 {[%clk 0:02:13]} 12. Re1 {[%clk 0:02:04]}  Nf8 {[%clk 0:02:10]} 13. dxc5 {[%clk 0:01:55]}  dxc5 {[%clk 0:02:08]} 14. Nd2 {[%clk 0:01:56]}  e4 {[%clk 0:01:36]} 15. Ndxe4 {[%clk 0:01:52]}  Nxe4 {[%clk 0:01:36]} 16. Nxe4 {[%clk 0:01:53]}  b6 {[%clk 0:00:51]} 17. Nf6+ {[%clk 0:01:22]}  Qxf6 {[%clk 0:00:38]} 18. Bxa8 {[%clk 0:01:22]}  Qxa1 {[%clk 0:00:29]} 19. Qxa1 {[%clk 0:01:23]}  Bxa1 {[%clk 0:00:29]} 20. Rxa1 {[%clk 0:01:24]}  Bf5 {[%clk 0:00:27]} 21. Bd5 {[%clk 0:01:23]}  Nd7 {[%clk 0:00:26]} 22. Bb2 {[%clk 0:01:23]}  Ne5 {[%clk 0:00:24]} 23. Bxe5 {[%clk 0:01:16]}  Rxe5 {[%clk 0:00:24]} 24. Rd1 {[%clk 0:01:16]}  Re7 {[%clk 0:00:23]} 25. Bc6 {[%clk 0:01:11]}  Kg7 {[%clk 0:00:19]} 26. Kf1 {[%clk 0:01:04]}  Rc7 {[%clk 0:00:10]} 27. Ba8 {[%clk 0:00:58]}  Kf6 {[%clk 0:00:10]} 28. Ke2 {[%clk 0:00:56]}  h5 {[%clk 0:00:08]} 29. e4 {[%clk 0:00:50]}  Be6 {[%clk 0:00:07]} 30. Ke3 {[%clk 0:00:50]}  g5 {[%clk 0:00:06]} 31. Rd8 {[%clk 0:00:42]}  Rd7 {[%clk 0:00:04]} 32. Rxd7 {[%clk 0:00:41]}  Bxd7 {[%clk 0:00:05]} 33. f4 {[%clk 0:00:41]}  gxf4+ {[%clk 0:00:03]} 34. Kxf4 {[%clk 0:00:40]}  Bg4 {[%clk 0:00:02]} 35. e5+ {[%clk 0:00:39]}  Ke7 {[%clk 0:00:03]} 36. Bf3 {[%clk 0:00:39]}  Be6 {[%clk 0:00:01]} 37. Bxh5 {[%clk 0:00:39]}  Bc8 {[%clk 0:00:01]} 38. Bg4 {[%clk 0:00:38]}  Bb7 {[%clk 0:00:01]} 39. h4 {[%clk 0:00:38]}  Bg2 {[%clk 0:00:01]} 40. h5 {[%clk 0:00:37]}  Kf8 {[%clk 0:00:01]} 41. Kg5 {[%clk 0:00:36]}  Kg7 {[%clk 0:00:00]} 42. Bf5 {[%clk 0:00:36]} 1-0


[Site "https://www.chess.com"]

[Event "Titled Tuesday Blitz July 4 Early 2023"]
[White "Mikhailovsky, Vladimir"]
[Black "Streltsov, Alexey"]
[WhiteFideId "34105414"]
[BlackFideId "24104434"]
[WhiteElo "2823"]
[BlackElo "2416"]
[Result "0-1"]
[Round "2"]
[TimeControl "180+2"]
[Date "2023.07.04"]
[WhiteClock "0:00:05"]
[BlackClock "0:01:34"]
[Board "133"]

1. d4 {[%clk 0:03:00]}  d5 {[%clk 0:03:00]} 2. c4 {[%clk 0:03:00]}  e6 {[%clk 0:03:00]} 3. Nf3 {[%clk 0:03:01]}  c6 {[%clk 0:03:01]} 4. Nbd2 {[%clk 0:02:58]}  f5 {[%clk 0:03:00]} 5. g3 {[%clk 0:02:54]}  Bd6 {[%clk 0:03:01]} 6. Bg2 {[%clk 0:02:54]}  Nh6 {[%clk 0:03:01]} 7. O-O {[%clk 0:02:54]}  Nf7 {[%clk 0:03:02]} 8. b3 {[%clk 0:02:48]}  g5 {[%clk 0:03:02]} 9. Ne1 {[%clk 0:02:48]}  g4 {[%clk 0:03:03]} 10. Nd3 {[%clk 0:02:48]}  h5 {[%clk 0:03:02]} 11. Re1 {[%clk 0:02:31]}  Qf6 {[%clk 0:03:01]} 12. Nf1 {[%clk 0:02:29]}  Nd7 {[%clk 0:02:56]} 13. Qc2 {[%clk 0:02:07]}  h4 {[%clk 0:02:55]} 14. Qc3 {[%clk 0:02:06]}  hxg3 {[%clk 0:02:53]} 15. fxg3 {[%clk 0:01:49]}  Nc5 {[%clk 0:02:48]} 16. Qb2 {[%clk 0:01:32]}  Ne4 {[%clk 0:02:47]} 17. Bf4 {[%clk 0:01:32]}  Nfg5 {[%clk 0:02:43]} 18. Bxd6 {[%clk 0:01:30]}  Nxd6 {[%clk 0:02:43]} 19. Nf4 {[%clk 0:01:27]}  Bd7 {[%clk 0:02:36]} 20. Rad1 {[%clk 0:01:17]}  O-O-O {[%clk 0:02:34]} 21. Qa3 {[%clk 0:01:14]}  Nde4 {[%clk 0:02:11]} 22. Qxa7 {[%clk 0:01:14]}  Nh3+ {[%clk 0:02:08]} 23. Bxh3 {[%clk 0:00:52]}  gxh3 {[%clk 0:02:09]} 24. Rc1 {[%clk 0:00:45]}  Be8 {[%clk 0:02:08]} 25. cxd5 {[%clk 0:00:25]}  exd5 {[%clk 0:02:08]} 26. Ne3 {[%clk 0:00:20]}  Bf7 {[%clk 0:02:07]} 27. b4 {[%clk 0:00:16]}  Nd6 {[%clk 0:02:00]} 28. Qa8+ {[%clk 0:00:14]}  Kd7 {[%clk 0:01:56]} 29. Qa5 {[%clk 0:00:13]}  Qxd4 {[%clk 0:01:53]} 30. Qc5 {[%clk 0:00:12]}  Qe5 {[%clk 0:01:49]} 31. Red1 {[%clk 0:00:08]}  Rhe8 {[%clk 0:01:50]} 32. Nc4 {[%clk 0:00:05]}  dxc4 {[%clk 0:01:45]} 33. Qb6 {[%clk 0:00:04]}  Qe3+ {[%clk 0:01:43]} 34. Qxe3 {[%clk 0:00:05]}  Rxe3 {[%clk 0:01:43]} 35. Kf2 {[%clk 0:00:06]}  Ra3 {[%clk 0:01:44]} 36. Nxh3 {[%clk 0:00:04]}  Rxa2 {[%clk 0:01:44]} 37. Nf4 {[%clk 0:00:05]}  Re8 {[%clk 0:01:44]} 38. Rd4 {[%clk 0:00:04]}  Kc7 {[%clk 0:01:44]} 39. Rcd1 {[%clk 0:00:04]}  Bd5 {[%clk 0:01:37]} 40. Nxd5+ {[%clk 0:00:03]}  cxd5 {[%clk 0:01:37]} 41. Rxd5 {[%clk 0:00:04]}  Rexe2+ {[%clk 0:01:37]} 42. Kf3 {[%clk 0:00:03]}  Rf2+ {[%clk 0:01:37]} 43. Ke3 {[%clk 0:00:04]}  Rae2+ {[%clk 0:01:37]} 44. Kd4 {[%clk 0:00:04]}  Rd2+ {[%clk 0:01:37]} 45. Kc5 {[%clk 0:00:04]}  Ne4+ {[%clk 0:01:36]} 46. Kxc4 {[%clk 0:00:03]}  Rxd1 {[%clk 0:01:31]} 47. Rxd1 {[%clk 0:00:04]}  Rxh2 {[%clk 0:01:29]} 48. Kd4 {[%clk 0:00:03]}  Rd2+ {[%clk 0:01:29]} 49. Rxd2 {[%clk 0:00:03]}  Nxd2 {[%clk 0:01:30]} 50. Ke5 {[%clk 0:00:04]}  Nf1 {[%clk 0:01:31]} 51. Kf4 {[%clk 0:00:04]}  Nxg3 {[%clk 0:01:30]} 52. Kxg3 {[%clk 0:00:04]}  Kc6 {[%clk 0:01:30]} 53. Kf4 {[%clk 0:00:05]}  Kb5 {[%clk 0:01:31]} 54. Kxf5 {[%clk 0:00:05]}  Kxb4 {[%clk 0:01:32]} 55. Ke4 {[%clk 0:00:06]}  Kc3 {[%clk 0:01:32]} 56. Ke3 {[%clk 0:00:06]}  b5 {[%clk 0:01:33]} 57. Ke2 {[%clk 0:00:05]}  Kc2 {[%clk 0:01:34]} 0-1


[Site "https://www.chess.com"]

[Event "Titled Tuesday Blitz July 4 Early 2023"]
[White "Molenda, Marcin"]
[Black "Hambleton, Aman"]
[WhiteFideId "1173065"]
[BlackFideId "2606577"]
[WhiteElo "2414"]
[BlackElo "2787"]
[Result "1-0"]
[Round "2"]
[TimeControl "180+2"]
[Date "2023.07.04"]
[WhiteClock "0:01:05"]
[BlackClock "0:00:00"]
[Board "135"]

1. e4 {[%clk 0:02:59]}  b6 {[%clk 0:03:00]} 2. d4 {[%clk 0:02:59]}  Bb7 {[%clk 0:03:00]} 3. f3 {[%clk 0:02:59]}  e6 {[%clk 0:03:00]} 4. c4 {[%clk 0:02:58]}  Bb4+ {[%clk 0:02:59]} 5. Bd2 {[%clk 0:02:55]}  Bxd2+ {[%clk 0:03:00]} 6. Qxd2 {[%clk 0:02:56]}  d6 {[%clk 0:03:00]} 7. Nc3 {[%clk 0:02:54]}  Nd7 {[%clk 0:03:00]} 8. Bd3 {[%clk 0:02:54]}  h6 {[%clk 0:03:00]} 9. Nge2 {[%clk 0:02:54]}  Qg5 {[%clk 0:03:00]} 10. O-O-O {[%clk 0:02:43]}  Qxd2+ {[%clk 0:02:59]} 11. Rxd2 {[%clk 0:02:43]}  Ne7 {[%clk 0:02:59]} 12. h4 {[%clk 0:02:40]}  g6 {[%clk 0:02:58]} 13. Rf1 {[%clk 0:02:36]}  O-O-O {[%clk 0:02:53]} 14. b4 {[%clk 0:02:17]}  g5 {[%clk 0:02:32]} 15. Rh1 {[%clk 0:02:13]}  g4 {[%clk 0:02:13]} 16. f4 {[%clk 0:02:12]}  f5 {[%clk 0:02:13]} 17. g3 {[%clk 0:02:08]}  Nf6 {[%clk 0:02:12]} 18. d5 {[%clk 0:01:57]}  fxe4 {[%clk 0:01:58]} 19. Nxe4 {[%clk 0:01:56]}  Nxe4 {[%clk 0:01:52]} 20. Bxe4 {[%clk 0:01:57]}  Rde8 {[%clk 0:01:04]} 21. Nc3 {[%clk 0:01:56]}  Nf5 {[%clk 0:00:43]} 22. Bxf5 {[%clk 0:01:50]}  exf5 {[%clk 0:00:44]} 23. Kc2 {[%clk 0:01:45]}  Re3 {[%clk 0:00:23]} 24. Rd3 {[%clk 0:01:45]}  Rhe8 {[%clk 0:00:23]} 25. Rhd1 {[%clk 0:01:45]}  R3e7 {[%clk 0:00:12]} 26. Nb5 {[%clk 0:01:35]}  Re2+ {[%clk 0:00:03]} 27. R1d2 {[%clk 0:01:35]}  R8e3 {[%clk 0:00:01]} 28. Nd4 {[%clk 0:01:25]}  Rxd3 {[%clk 0:00:01]} 29. Kxd3 {[%clk 0:01:25]}  Re1 {[%clk 0:00:02]} 30. Nxf5 {[%clk 0:01:25]}  Kd8 {[%clk 0:00:02]} 31. Nxh6 {[%clk 0:01:22]}  Bc8 {[%clk 0:00:02]} 32. f5 {[%clk 0:01:22]}  Ra1 {[%clk 0:00:01]} 33. Rf2 {[%clk 0:01:21]}  Ke7 {[%clk 0:00:01]} 34. Nxg4 {[%clk 0:01:21]}  Rc1 {[%clk 0:00:01]} 35. h5 {[%clk 0:01:20]}  Rd1+ {[%clk 0:00:01]} 36. Kc2 {[%clk 0:01:19]}  Rh1 {[%clk 0:00:02]} 37. h6 {[%clk 0:01:16]}  Kf7 {[%clk 0:00:03]} 38. Kd3 {[%clk 0:01:14]}  Bd7 {[%clk 0:00:03]} 39. Ke4 {[%clk 0:01:14]}  Re1+ {[%clk 0:00:03]} 40. Kf4 {[%clk 0:01:14]}  Rc1 {[%clk 0:00:03]} 41. Kg5 {[%clk 0:01:12]}  Rxc4 {[%clk 0:00:03]} 42. Rh2 {[%clk 0:01:08]}  Rd4 {[%clk 0:00:01]} 43. h7 {[%clk 0:01:08]}  Rxd5 {[%clk 0:00:01]} 44. h8=Q {[%clk 0:01:06]}  Rxf5+ {[%clk 0:00:01]} 45. Kh4 {[%clk 0:01:06]}  Ke6 {[%clk 0:00:00]} 46. Qg8+ {[%clk 0:01:05]} 1-0


[Site "https://www.chess.com"]